bitfinex/quotes_SOLUSD_20260305
["timestamp","ask_amount","ask_price","bid_price","bid_amount"]
[1772712180842,1.12021184,91.551,91.456,3.69383402]
[1772712180843,10.92357717,91.546,91.456,3.69383402]
[1772712181146,1.11978494,91.573,91.463,4.82477569]
[1772712181319,1.11978494,91.599,91.471,8.51860971]
[1772712181644,1.11978494,91.599,91.483,8.51860971]
[1772712181816,1.11978494,91.599,91.498,1.37922465]
[1772712182221,1.11936293,91.597,91.503,1.37922465]
[1772712182437,3.69383402,91.625,91.503,1.37922465]
[1772712182438,1.11936293,91.611,91.508,1.52138622]
[1772712182643,1.11936293,91.609,91.512,1.37922465]
[1772712183643,1.11894578,91.607,91.512,1.37922465]
[1772712184242,1.11853342,91.605,91.517,1.37922465]
[1772712184424,1.11853342,91.605,91.517,1.66354779]
[1772712186120,10.81710163,91.58,91.517,1.66354779]
[1772712186323,10.81710163,91.58,91.508,6.88983413]
[1772712186324,1.11602246,91.567,91.522,1.37922465]
[1772712186645,1.11602246,91.583,91.522,1.37922465]
[1772712187040,1.11602246,91.583,91.522,1.52138622]
[1772712187235,1.11602246,91.583,91.524,1.37922465]
[1772712187823,1.11478857,91.579,91.526,1.37922465]
[1772712188429,10.918718,91.586,91.526,1.37922465]
[1772712188631,1.11356886,91.579,91.526,1.37922465]
[1772712188829,38.21546641,91.586,91.525,38.24091777]
[1772712188830,1.11356886,91.569,91.525,10.9259765]
[1772712190036,1.1111713,91.539,91.508,17.81779629]
[1772712190245,1.1111713,91.539,91.508,6.88983413]
[1772712190750,1.1111713,91.539,91.482,10.93109974]
[1772712190751,10.81710163,91.52,91.482,10.93109974]
[1772712190960,10.81710163,91.5,91.434,1.40636181]
[1772712191129,10.81710163,91.47,91.434,1.40636181]
[1772712191663,10.81710163,91.48,91.434,1.40636181]
[1772712191953,10.93266571,91.469,91.435,10.93673101]
[1772712192153,0.28432314,91.495,91.43,1.40636181]
[1772712192330,10.81710163,91.48,91.43,1.40636181]
[1772712193935,11.07243734,91.489,91.432,1.40636181]
[1772712194242,10.81710163,91.48,91.432,1.40636181]
[1772712194847,10.93027577,91.489,91.432,1.69068495]
[1772712195037,10.81710163,91.5,91.432,1.69068495]
[1772712195234,10.81710163,91.49,91.432,1.69068495]
[1772712195840,0.14216157,91.499,91.432,0.14216157]
[1772712196042,10.81710163,91.46,91.425,1.40636181]
[1772712196246,10.81710163,91.45,91.413,12.34572492]
[1772712196543,10.81710163,91.46,91.414,1.40636181]
[1772712196950,10.81710163,91.47,91.414,1.40636181]
[1772712197250,10.81710163,91.46,91.414,1.40636181]
[1772712198051,10.93386107,91.459,91.416,1.40636181]
[1772712198248,10.93386107,91.459,91.415,10.93912377]
[1772712198249,0.28432314,91.458,91.415,10.93912377]
[1772712198425,10.81710163,91.45,91.415,10.93912377]
[1772712198749,10.81710163,91.45,91.408,1.40636181]
[1772712198950,10.81710163,91.44,91.404,0.69545096]
[1772712199531,10.81710163,91.44,91.405,10.94032055]
[1772712200151,10.93625258,91.439,91.405,10.94032055]
[1772712200340,10.93625258,91.439,91.404,0.69545096]
[1772712200542,10.81710163,91.43,91.404,0.69545096]
[1772712200748,10.81710163,91.43,91.353,43.78611851]
[1772712200749,10.81710163,91.42,91.372,1.40636181]
[1772712200958,10.81710163,91.42,91.381,10.94317329]
[1772712201454,0.28432314,91.438,91.382,1.40636181]
[1772712201957,10.81710163,91.43,91.382,1.40636181]
[1772712202540,10.81710163,91.42,91.384,1.40636181]
[1772712202742,0.14216157,91.455,91.384,1.40636181]
[1772712202743,10.81710163,91.43,91.384,1.40636181]
[1772712203337,10.81710163,91.42,91.384,1.40636181]
[1772712203634,4.82477569,91.473,91.384,1.40636181]
[1772712203635,0.28432314,91.457,91.384,1.40636181]
[1772712203849,10.81710163,91.45,91.384,1.40636181]
[1772712204044,0.14216157,91.457,91.384,1.40636181]
[1772712204254,10.81710163,91.46,91.384,1.69068495]
[1772712204453,10.81710163,91.46,91.386,1.40636181]
[1772712204637,10.81710163,91.46,91.346,50.65781093]
[1772712204638,3.69383402,91.452,91.363,1.40636181]
[1772712204841,0.28432314,91.435,91.363,1.40636181]
[1772712205156,10.81710163,91.44,91.343,1.40636181]
[1772712205157,10.81710163,91.39,91.343,1.40636181]
[1772712205339,3.69383402,91.422,91.345,1.40636181]
[1772712205531,0.28432314,91.415,91.345,1.40636181]
[1772712205758,10.81710163,91.38,91.345,1.40636181]
[1772712206560,10.94463111,91.369,91.334,10.94882519]
[1772712206851,10.81710163,91.38,91.335,1.40636181]
[1772712208557,10.81710163,91.38,91.307,43.8079888]
[1772712208558,10.81710163,91.39,91.337,1.40636181]
[1772712208761,6.74675642,91.419,91.336,38.32004904]
[1772712208762,10.81710163,91.41,91.342,1.40636181]
[1772712208960,10.81710163,91.41,91.344,1.40636181]
[1772712209162,38.28567677,91.418,91.346,1.40636181]
[1772712209351,10.81710163,91.41,91.346,1.40636181]
[1772712209549,10.81710163,91.4,91.346,1.40636181]
[1772712210460,38.28567677,91.418,91.346,1.40636181]
[1772712210461,10.81710163,91.39,91.346,1.40636181]
[1772712210666,10.81710163,91.39,91.326,47.77705651]
[1772712210667,6.74675642,91.419,91.348,1.40636181]
[1772712210840,6.74675642,91.419,91.351,1.69068495]
[1772712211046,10.93876479,91.418,91.351,1.69068495]
[1772712211243,43.71951243,91.493,91.352,1.69068495]
[1772712211554,43.71200952,91.509,91.35,3.69383402]
[1772712211555,10.81710163,91.46,91.362,1.40636181]
[1772712211766,10.93271078,91.469,91.362,1.40636181]
[1772712211960,10.81710163,91.46,91.362,1.40636181]
[1772712212142,10.93271078,91.469,91.372,1.40636181]
[1772712212338,10.93190149,91.476,91.379,4.82477569]
[1772712212555,10.93027577,91.489,91.384,3.69383402]
[1772712212867,10.93027577,91.489,91.381,213.39228066]
[1772712212868,10.93003683,91.491,91.39,1.69068495]
[1772712213339,6.74763104,91.492,91.393,3.69383402]
[1772712213542,5.66467226,91.528,91.393,3.69383402]
[1772712213543,10.81710163,91.51,91.402,4.82477569]
[1772712213745,10.81710163,91.52,91.421,1.69068495]
[1772712214651,10.92669281,91.519,91.426,1.40636181]
[1772712214852,10.92669281,91.519,91.426,1.69068495]
[1772712215162,10.81710163,91.53,91.431,1.40636181]
[1772712215858,10.81710163,91.52,91.431,1.40636181]
[1772712216768,10.92669281,91.519,91.436,1.69068495]
[1772712217441,10.92611256,91.524,91.436,1.69068495]
[1772712217648,10.81710163,91.55,91.451,5.10019583]
[1772712217852,10.92084571,91.568,91.452,1.40636181]
[1772712218062,10.81710163,91.55,91.452,1.40636181]
[1772712218261,38.22295998,91.568,91.452,1.40636181]
[1772712218262,10.81710163,91.53,91.452,1.40636181]
[1772712218846,10.92549902,91.529,91.457,1.40636181]
[1772712219251,10.92482774,91.535,91.457,1.40636181]
[1772712219453,10.81710163,91.53,91.457,1.40636181]
[1772712220569,10.92482774,91.535,91.457,1.40636181]
[1772712220748,27.30459378,91.56,91.457,1.69068495]
[1772712220948,10.81710163,91.56,91.464,1.40636181]
[1772712221149,10.81710163,91.56,91.467,0.14216157]
[1772712221373,10.81710163,91.56,91.469,0.14216157]
[1772712221670,10.81710163,91.56,91.472,1.54852338]
[1772712221865,10.81710163,91.56,91.474,1.69068495]
[1772712222169,10.92084571,91.568,91.474,1.69068495]
[1772712222373,10.9202046,91.574,91.474,1.69068495]
[1772712222666,10.91946313,91.58,91.479,1.40636181]
[1772712222865,27.29138465,91.604,91.484,1.40636181]
[1772712223071,10.81710163,91.58,91.484,1.69068495]
[1772712223370,10.81710163,91.57,91.484,1.69068495]
[1772712223750,10.81710163,91.58,91.484,1.69068495]
[1772712224069,10.81710163,91.58,91.485,1.69068495]
[1772712224253,10.81710163,91.58,91.489,1.40636181]
[1772712224567,10.81710163,91.58,91.492,1.40636181]
[1772712225052,10.91953395,91.579,91.497,1.40636181]
[1772712225247,10.81710163,91.57,91.5,0.14216157]
[1772712225465,10.81710163,91.56,91.503,1.40636181]
[1772712225775,10.81710163,91.57,91.507,1.40636181]
[1772712226952,10.81710163,91.55,91.507,1.40636181]
[1772712227158,10.92311221,91.549,91.508,10.92800629]
[1772712227476,10.92311221,91.549,91.508,38.24802202]
[1772712227857,10.92311221,91.549,91.508,39.65438383]
[1772712228171,10.92311221,91.549,91.509,1.40636181]
[1772712229169,10.92191919,91.559,91.511,1.40636181]
[1772712229573,10.92191919,91.559,91.49,0.14216157]
[1772712229574,10.81710163,91.54,91.5,1.40636181]
[1772712229759,10.81710163,91.54,91.504,10.92844263]
[1772712230288,10.81710163,91.55,91.504,10.92844263]
[1772712230477,10.81710163,91.55,91.505,1.40636181]
[1772712230668,10.81710163,91.58,91.505,1.69068495]
[1772712230860,10.81710163,91.57,91.505,1.69068495]
[1772712231057,0.67016062,91.587,91.505,1.69068495]
[1772712231058,0.67016062,91.587,91.508,1.69068495]
[1772712231250,0.67016062,91.587,91.506,62.39282451]
[1772712231251,10.91869936,91.586,91.515,1.69068495]
[1772712231453,10.81710163,91.58,91.515,1.69068495]
[1772712232970,10.81710163,91.57,91.515,1.40636181]
[1772712233271,10.81710163,91.57,91.506,61.3]
[1772712233272,10.92072644,91.569,91.516,38.24467851]
[1772712233455,10.92072644,91.569,91.517,1.40636181]
[1772712234271,10.92072644,91.569,91.493,1.40636181]
[1772712234272,10.81710163,91.53,91.493,1.40636181]
[1772712234586,0.14216157,91.568,91.494,1.40636181]
[1772712234587,10.81710163,91.54,91.494,1.40636181]
[1772712235262,0.14216157,91.568,91.494,1.40636181]
[1772712235463,0.14216157,91.568,91.496,1.40636181]
[1772712235464,10.81710163,91.54,91.496,1.40636181]
[1772712235875,10.81710163,91.53,91.496,1.40636181]
[1772712236061,10.81710163,91.53,91.495,10.92955899]
[1772712236372,10.81710163,91.56,91.495,10.92955899]
[1772712236373,10.81710163,91.52,91.495,10.92955899]
[1772712236680,10.81710163,91.52,91.486,1.40636181]
[1772712236681,10.81710163,91.52,91.49,10.93011211]
[1772712237076,10.81710163,91.56,91.49,10.93011211]
[1772712237077,10.81710163,91.53,91.49,10.93011211]
[1772712237465,10.81710163,91.52,91.475,1.40636181]
[1772712238877,21.7437773,91.52,91.477,1.40636181]
[1772712239863,10.81710163,91.51,91.476,10.93182911]
[1772712240162,10.81710163,91.51,91.466,1.40636181]
[1772712240585,10.81481572,91.51,91.465,38.26600338]
[1772712240885,10.81481572,91.5,91.456,12.34058154]
[1772712241094,98.31678701,91.541,91.456,12.34058154]
[1772712241095,10.81481572,91.49,91.456,10.93421973]
[1772712241587,10.81481572,91.48,91.456,10.93421973]
[1772712241789,10.81481572,91.49,91.456,10.93421973]
[1772712242891,10.93027577,91.489,91.446,38.27391258]
[1772712243492,10.81481572,91.48,91.446,10.93541543]
[1772712243673,10.93027577,91.489,91.379,43.77348915]
[1772712243674,10.81481572,91.47,91.424,10.9380469]
[1772712243994,10.81481572,91.46,91.425,1.40636181]
[1772712244170,10.81481572,91.47,91.425,1.40636181]
[1772712245002,10.93147061,91.479,91.427,1.40636181]
[1772712245169,10.93147061,91.479,91.429,1.40636181]
[1772712245369,10.81481572,91.47,91.429,1.40636181]
[1772712245776,38.26014713,91.479,91.429,1.40636181]
[1772712246089,10.81481572,91.47,91.429,1.40636181]
[1772712246886,10.93266571,91.469,91.43,10.9373291]
[1772712247300,10.81481572,91.47,91.431,1.40636181]
[1772712247474,10.93266571,91.469,91.431,1.40636181]
[1772712248195,10.81481572,91.46,91.43,10.9373291]
[1772712249066,10.93386107,91.459,91.422,1.40636181]
[1772712250093,10.93386107,91.459,91.421,38.28442042]
[1772712250800,10.81481572,91.44,91.411,10.93950879]
[1772712250999,43.72432197,91.483,91.402,10.94067963]
[1772712251000,10.93326336,91.464,91.402,10.94067963]
[1772712251295,10.81481572,91.43,91.402,10.94067963]
[1772712251877,27.33465268,91.459,91.383,10.94295437]
[1772712252077,10.81481572,91.42,91.384,1.40636181]
[1772712252576,10.81481572,91.4,91.362,12.35183148]
[1772712252891,10.81481572,91.44,91.363,1.40636181]
[1772712253092,11.92687225,91.47,91.342,43.79114602]
[1772712253093,10.81481572,91.43,91.365,1.69068495]
[1772712253303,10.81481572,91.46,91.368,1.69068495]
[1772712253675,10.81481572,91.45,91.368,1.69068495]
[1772712254995,0.14216157,91.475,91.373,1.40636181]
[1772712255185,10.81481572,91.45,91.373,1.69068495]
[1772712256587,0.28432314,91.475,91.373,1.69068495]
[1772712256588,10.81481572,91.43,91.373,1.69068495]
[1772712256786,10.81481572,91.44,91.373,1.69068495]
[1772712257198,10.93625258,91.439,91.376,1.40636181]
[1772712258191,10.81481572,91.43,91.376,1.40636181]
[1772712258398,38.27688403,91.439,91.376,1.40636181]
[1772712258595,10.93625258,91.439,91.376,1.40636181]
[1772712258794,21.75098049,91.44,91.376,1.40636181]
[1772712258992,10.93616477,91.44,91.376,1.40636181]
[1772712259578,10.93505669,91.449,91.378,1.40636181]
[1772712259778,10.93505669,91.449,91.382,1.40636181]
[1772712259979,10.93505669,91.449,91.384,1.40636181]
[1772712260322,10.93505669,91.449,91.386,1.69068495]
[1772712260597,10.93505669,91.449,91.389,1.40636181]
[1772712261185,10.81481572,91.45,91.389,1.40636181]
[1772712261391,10.9345741,91.454,91.389,1.40636181]
[1772712261587,10.81481572,91.45,91.389,1.40636181]
[1772712261786,10.93505669,91.449,91.391,1.69068495]
[1772712262186,10.81481572,91.44,91.391,1.69068495]
[1772712262499,10.81481572,91.43,91.391,1.40636181]
[1772712262882,10.93505669,91.449,91.391,1.40636181]
[1772712263082,10.93505669,91.449,91.393,1.40636181]
[1772712263299,10.93505669,91.449,91.397,1.40636181]
[1772712263689,10.93505669,91.449,91.399,1.40636181]
[1772712264001,4.82477569,91.502,91.398,38.29405456]
[1772712264002,10.93147061,91.479,91.404,1.40636181]
[1772712264208,6.74918831,91.48,91.404,1.40636181]
[1772712265097,10.93147061,91.479,91.404,1.40636181]
[1772712265790,10.93147061,91.479,91.409,1.40636181]
[1772712265994,10.93147061,91.479,91.409,1.69068495]
[1772712267082,54.63291365,91.52,91.409,1.69068495]
[1772712267402,43.68830939,91.558,91.409,1.69068495]
[1772712267403,10.81481572,91.49,91.409,1.69068495]
[1772712267825,10.81481572,91.48,91.414,1.40636181]
[1772712268000,10.81481572,91.48,91.414,1.69068495]
[1772712268197,10.92972608,91.494,91.414,1.69068495]
[1772712268404,10.81481572,91.49,91.414,1.69068495]
[1772712268709,10.92972608,91.494,91.414,1.69068495]
[1772712269107,10.92812571,91.507,91.414,1.69068495]
[1772712269403,10.92812571,91.507,91.419,1.40636181]
[1772712269703,10.81481572,91.5,91.419,1.69068495]
[1772712269901,10.81481572,91.5,91.424,1.69068495]
[1772712269902,10.92908119,91.499,91.424,1.69068495]
[1772712270102,10.92862544,91.503,91.424,1.69068495]
[1772712271095,10.92806833,91.508,91.424,1.69068495]
[1772712271603,10.81481572,91.52,91.425,1.09379272]
[1772712271806,10.92669281,91.519,91.429,1.69068495]
[1772712272114,10.81481572,91.53,91.434,1.69068495]
[1772712272487,10.81481572,91.52,91.434,1.69068495]
[1772712273395,10.81481572,91.51,91.434,1.69068495]
[1772712274298,10.92788687,91.509,91.439,1.69068495]
[1772712274504,10.81481572,91.53,91.441,1.40636181]
[1772712274701,10.81481572,91.53,91.445,1.40636181]
[1772712274905,10.81481572,91.52,91.447,1.40636181]
[1772712275212,10.81481572,91.52,91.447,1.69068495]
[1772712275799,10.92669281,91.519,91.452,1.40636181]
[1772712276014,10.81481572,91.53,91.452,1.69068495]
[1772712276517,10.81481572,91.53,91.454,1.69068495]
[1772712276712,10.81481572,91.53,91.458,3.69383402]
[1772712276910,10.81481572,91.53,91.462,0.14216157]
[1772712277098,10.81481572,91.53,91.465,1.40636181]
[1772712277299,27.31103872,91.539,91.465,1.40636181]
[1772712277512,27.31103872,91.539,91.467,1.69068495]
[1772712277819,6.76761178,91.547,91.469,1.40636181]
[1772712278016,10.81481572,91.58,91.478,1.40636181]
[1772712278200,54.67349451,91.62,91.487,1.40636181]
[1772712278201,10.81481572,91.57,91.487,1.40636181]
[1772712278401,10.81481572,91.56,91.487,1.40636181]
[1772712278604,10.81481572,91.56,91.489,1.40636181]
[1772712278805,10.81481572,91.57,91.491,1.40636181]
[1772712278998,38.21544777,91.586,91.495,1.40636181]
[1772712279192,38.21544777,91.586,91.498,0.14216157]
[1772712279193,10.91869936,91.586,91.498,0.14216157]
[1772712279398,10.91869936,91.586,91.501,1.40636181]
[1772712279593,10.91869936,91.586,91.505,1.40636181]
[1772712279804,10.91869936,91.586,91.511,3.69383402]
[1772712280121,10.91869936,91.586,91.514,1.40636181]
[1772712280414,10.81481572,91.58,91.516,1.40636181]
[1772712281113,38.21544777,91.586,91.516,1.40636181]
[1772712281996,10.81481572,91.58,91.518,1.69068495]
[1772712283299,10.81481572,91.58,91.517,92.87891866]
[1772712283300,10.81481572,91.58,91.52,1.69068495]
[1772712284206,10.91953395,91.579,91.522,0.28432314]
[1772712284405,10.81481572,91.57,91.523,1.40636181]
[1772712284920,38.21836883,91.579,91.523,1.40636181]
[1772712284921,10.91953395,91.579,91.523,1.40636181]
[1772712285229,10.81481572,91.57,91.523,1.40636181]
[1772712285601,10.91953395,91.579,91.523,1.40636181]
[1772712286220,10.81481572,91.57,91.523,1.40636181]
[1772712286907,10.92072644,91.569,91.524,10.92609588]
[1772712287096,10.81481572,91.55,91.524,10.92609588]
[1772712287296,10.81481572,91.55,91.524,38.24133559]
[1772712287914,38.22254255,91.569,91.524,38.24133559]
[1772712287915,10.81481572,91.56,91.524,39.6476974]
[1772712288119,10.81481572,91.54,91.515,10.9271704]
[1772712288311,10.81481572,91.54,91.495,1.40636181]
[1772712288503,10.81481572,91.53,91.496,10.92943953]
[1772712288912,10.81481572,91.53,91.496,38.25303837]
[1772712289117,10.92549902,91.529,91.487,1.40636181]
[1772712291328,10.81481572,91.52,91.488,10.93039524]
[1772712291824,10.81481572,91.51,91.488,10.93039524]
[1772712292326,10.81481572,91.52,91.488,10.93039524]
[1772712292808,10.81481572,91.51,91.478,10.9315901]
[1772712293212,10.81481572,91.52,91.479,1.40636181]
[1772712293412,0.28432314,91.555,91.479,1.40636181]
[1772712293413,10.81481572,91.53,91.479,1.40636181]
[1772712294221,10.81481572,91.52,91.479,1.40636181]
[1772712294627,10.81481572,91.53,91.479,1.40636181]
[1772712294926,10.81481572,91.53,91.481,1.40636181]
[1772712295137,10.81481572,91.55,91.484,1.40636181]
[1772712295330,10.92311221,91.549,91.487,1.40636181]
[1772712295513,10.92311221,91.549,91.487,1.69068495]
[1772712296521,10.81481572,91.56,91.49,1.69068495]
[1772712296726,10.81481572,91.56,91.495,1.69068495]
[1772712297330,10.92191919,91.559,91.497,1.40636181]
[1772712297741,10.92191919,91.559,91.497,1.69068495]
[1772712298308,10.81481572,91.55,91.497,1.40636181]
[1772712298729,38.22671718,91.559,91.497,1.40636181]
[1772712298730,10.81481572,91.54,91.497,1.40636181]
[1772712299429,10.81481572,91.55,91.499,1.40636181]
[1772712299627,10.81481572,91.56,91.499,1.69068495]
[1772712300015,10.81481572,91.55,91.499,1.40636181]
[1772712300423,10.81481572,91.54,91.499,1.40636181]
[1772712300609,10.80571502,91.55,91.501,1.40636181]
[1772712301242,10.80571502,91.55,91.503,1.40636181]
[1772712301243,10.92311221,91.549,91.503,1.40636181]
[1772712301409,10.92311221,91.549,91.504,61.3]
[1772712301610,10.92311221,91.549,91.505,1.40636181]
[1772712302834,38.23089274,91.549,91.505,1.40636181]
[1772712303030,10.80571502,91.54,91.504,62.70636181]
[1772712303237,10.92311221,91.549,91.505,1.40636181]
[1772712303537,10.92311221,91.549,91.504,61.3]
[1772712303538,10.92311221,91.549,91.507,1.40636181]
[1772712304537,10.80571502,91.57,91.507,1.40636181]
[1772712304739,10.80571502,91.57,91.512,1.40636181]
[1772712304941,10.80571502,91.57,91.512,1.54852338]
[1772712305142,10.80571502,91.52,91.477,1.40636181]
[1772712305314,0.14216157,91.548,91.436,105.04618335]
[1772712305315,10.80571502,91.51,91.473,27.33021555]
[1772712305519,10.80571502,91.51,91.474,1.40636181]
[1772712306217,10.80571502,91.53,91.474,1.40636181]
[1772712306448,8.91459282,91.57,91.474,1.40636181]
[1772712306449,21.72997081,91.54,91.474,1.69068495]
[1772712307122,21.72997081,91.54,91.478,1.40636181]
[1772712307856,21.72997081,91.54,91.48,1.69068495]
[1772712308547,10.92425579,91.54,91.48,1.69068495]
[1772712308920,10.92311221,91.549,91.483,1.69068495]
[1772712310253,10.92311221,91.549,91.488,1.69068495]
[1772712310752,38.23089274,91.549,91.488,1.69068495]
[1772712311333,10.92311221,91.549,91.488,1.69068495]
[1772712312159,10.92311221,91.549,91.49,1.69068495]
[1772712312751,10.92311221,91.549,91.492,1.69068495]
[1772712314140,10.92311221,91.549,91.494,1.40636181]
[1772712315756,10.92311221,91.549,91.493,38.25429267]
[1772712315757,10.92311221,91.549,91.496,1.40636181]
[1772712316141,10.92311221,91.549,91.495,61.3]
[1772712316142,10.92311221,91.549,91.498,1.40636181]
[1772712317652,10.80571502,91.54,91.498,1.40636181]
[1772712318550,10.92430548,91.539,91.5,38.25136611]
[1772712318752,10.92430548,91.539,91.501,1.40636181]
[1772712319053,10.80571502,91.53,91.5,10.92896174]
[1772712319254,10.80571502,91.52,91.475,10.93194861]
[1772712319441,10.80571502,91.51,91.475,10.93194861]
[1772712320161,38.23506919,91.539,91.441,61.3]
[1772712320162,10.80571502,91.5,91.461,10.93362198]
[1772712320658,10.80571502,91.48,91.453,10.93452507]
[1772712320859,38.25596519,91.489,91.453,10.93452507]
[1772712321238,10.93027577,91.489,91.453,10.93452507]
[1772712321556,10.93027577,91.489,91.454,1.40636181]
[1772712321755,10.93027577,91.489,91.453,38.27097111]
[1772712321934,10.80571502,91.48,91.453,10.93452507]
[1772712323044,10.80571502,91.49,91.442,1.40636181]
[1772712324965,10.80571502,91.48,91.443,10.93577419]
[1772712325265,10.80571502,91.47,91.443,10.93577419]
[1772712326138,10.80571502,91.47,91.432,1.40636181]
[1772712326139,10.80571502,91.47,91.433,10.93697024]
[1772712326343,10.80571502,91.47,91.433,72.23697024]
[1772712326566,10.80571502,91.47,91.434,1.40636181]
[1772712327154,10.93207897,91.474,91.436,1.40636181]
[1772712328165,10.80571502,91.47,91.436,1.40636181]
[1772712328871,10.80571502,91.48,91.436,1.40636181]
[1772712329262,10.80571502,91.47,91.437,10.93649179]
[1772712329560,10.80571502,91.47,91.438,1.40636181]
[1772712330069,10.93147061,91.479,91.438,1.40636181]
[1772712331547,10.80571502,91.49,91.44,1.40636181]
[1772712333258,0.28432314,91.508,91.44,1.40636181]
[1772712333259,10.80571502,91.48,91.44,1.40636181]
[1772712333770,10.93147061,91.479,91.442,1.40636181]
[1772712334658,10.80571502,91.49,91.442,1.40636181]
[1772712334867,10.93027577,91.489,91.442,1.40636181]
[1772712336178,10.80571502,91.48,91.444,1.40636181]
[1772712336364,38.25596519,91.489,91.444,1.40636181]
[1772712336555,38.25596519,91.489,91.444,61.3]
[1772712336756,38.25596519,91.489,91.445,1.40636181]
[1772712337372,10.93027577,91.489,91.445,1.40636181]
[1772712338168,10.93027577,91.489,91.425,0.28432314]
[1772712338169,10.80571502,91.51,91.449,1.40636181]
[1772712338373,10.80571502,91.5,91.451,1.69068495]
[1772712338571,10.80571502,91.49,91.451,1.40636181]
[1772712340066,10.80571502,91.5,91.451,1.40636181]
[1772712340468,10.92908119,91.499,91.453,1.40636181]
[1772712341181,10.80571502,91.49,91.453,1.40636181]
[1772712341665,38.25178417,91.499,91.453,1.40636181]
[1772712342087,10.80571502,91.49,91.453,1.40636181]
[1772712342380,10.93027577,91.489,91.454,10.93445885]
[1772712342567,10.93027577,91.489,91.455,1.40636181]
[1772712343685,10.92920063,91.498,91.455,1.40636181]
[1772712344785,10.92920063,91.498,91.457,1.40636181]
[1772712345579,10.92920063,91.498,91.458,10.93398062]
[1772712345781,10.92920063,91.498,91.459,1.40636181]
[1772712346085,10.80571502,91.49,91.459,1.40636181]
[1772712346386,10.80571502,91.49,91.458,10.93398062]
[1772712346589,5.04861124,91.49,91.454,10.93440127]
[1772712346786,5.04861124,91.47,91.442,1.40636181]
[1772712346974,5.04861124,91.47,91.434,27.34184625]
[1772712346975,5.04861124,91.46,91.433,1.40636181]
[1772712347175,5.04861124,91.46,91.435,10.93673101]
[1772712348586,10.93386107,91.459,91.43,10.93724583]
[1772712348787,10.93386107,91.459,91.43,12.34360764]
[1772712349873,10.93386107,91.459,91.431,1.40636181]
[1772712350070,5.04861124,91.46,91.431,1.40636181]
[1772712350574,5.04861124,91.46,91.433,1.40636181]
[1772712350767,10.93386107,91.459,91.433,1.40636181]
[1772712350968,92.93781912,91.459,91.391,12.34835828]
[1772712351175,5.04861124,91.42,91.392,1.40636181]
[1772712351789,5.04861124,91.41,91.392,1.40636181]
[1772712352180,5.04861124,91.43,91.392,1.40636181]
[1772712352898,5.04861124,91.43,91.385,11.04927011]
[1772712352899,5.04861124,91.44,91.394,1.40636181]
[1772712353191,5.04861124,91.43,91.394,1.40636181]
[1772712354977,10.93744873,91.429,91.396,1.40636181]
[1772712357408,10.93744873,91.429,91.398,1.40636181]
[1772712359882,5.04861124,91.44,91.4,1.40636181]
[1772712360285,38.26642176,91.464,91.402,1.40636181]
[1772712360286,10.93326336,91.464,91.402,1.40636181]
[1772712360492,5.04861124,91.5,91.405,1.69068495]
[1772712360698,5.04861124,91.5,91.407,1.69068495]
[1772712360890,5.04861124,91.5,91.412,1.40636181]
[1772712361092,10.9311124,91.482,91.417,1.54852338]
[1772712361310,5.04861124,91.5,91.419,1.54852338]
[1772712361598,5.04861124,91.5,91.416,3.69383402]
[1772712361599,5.04861124,91.49,91.424,0.14216157]
[1772712361802,5.04861124,91.5,91.426,1.40636181]
[1772712362021,5.04861124,91.5,91.428,1.40636181]
[1772712362484,5.04743406,91.5,91.428,1.40636181]
[1772712363087,5.04743406,91.49,91.428,1.40636181]
[1772712363486,5.04743406,91.5,91.428,1.40636181]
[1772712363803,0.28432314,91.508,91.428,1.40636181]
[1772712364104,5.04743406,91.5,91.428,1.40636181]
[1772712364288,5.04743406,91.5,91.424,0.14216157]
[1772712364289,5.04743406,91.49,91.43,1.40636181]
[1772712365393,10.92728981,91.514,91.435,1.40636181]
[1772712365598,5.04743406,91.51,91.435,1.54852338]
[1772712366207,5.04743406,91.49,91.437,1.40636181]
[1772712366404,10.92908119,91.499,91.437,1.40636181]
[1772712366603,10.92788687,91.509,91.437,1.69068495]
[1772712367305,38.24760405,91.509,91.437,1.69068495]
[1772712368505,10.92725198,91.515,91.442,1.69068495]
[1772712368994,27.31076564,91.539,91.442,1.69068495]
[1772712369309,38.23548689,91.538,91.447,1.69068495]
[1772712369607,43.67024501,91.596,91.447,1.69068495]
[1772712369608,43.67024501,91.596,91.453,1.40636181]
[1772712369815,43.66692449,91.603,91.452,0.28432314]
[1772712369816,5.04743406,91.54,91.458,1.69068495]
[1772712370015,5.04743406,91.53,91.46,1.69068495]
[1772712370192,5.04743406,91.53,91.465,1.40636181]
[1772712370514,5.04743406,91.55,91.467,1.40636181]
[1772712370515,5.04743406,91.52,91.467,1.40636181]
[1772712370711,5.04743406,91.51,91.467,1.40636181]
[1772712371090,5.04743406,91.5,91.466,10.93302429]
[1772712371913,0.28432314,91.528,91.461,10.93360197]
[1772712371914,5.04743406,91.49,91.461,10.93360197]
[1772712372619,10.93027577,91.489,91.461,10.93360197]
[1772712373318,10.92977779,91.494,91.461,10.93360197]
[1772712373619,10.92977779,91.494,91.462,1.40636181]
[1772712374004,10.81774782,91.49,91.461,10.93360197]
[1772712374310,10.92977779,91.494,91.461,10.93360197]
[1772712374516,10.81774782,91.49,91.461,10.93360197]
[1772712374706,10.93027577,91.489,91.456,10.93412922]